fUST/lending_fUST_20240608
["ID","MTS","AMOUNT","RATE_DAILY","PERIOD"]
[328794443,1717792247835,-1159.88,0.00021917,3]
[328794444,1717792247844,-1840.88,0.00021917,3]
[328794445,1717792247853,-500.0,0.00021917,3]
[328794446,1717792247864,-500.0,0.00021917,3]
[328794447,1717792247874,-500.0,0.00021917,3]
[328794448,1717792247883,-535.43,0.00021917,3]
[328794449,1717792247892,-500.0,0.00021917,3]
[328794450,1717792247901,-500.0,0.00021917,3]
[328794451,1717792247910,-1166.5,0.00021917,3]
[328794452,1717792247919,-500.0,0.00021917,3]
[328794453,1717792247929,-821.16,0.00021917,3]
[328794454,1717792247938,-154.68006968,0.00021917,3]
[328794455,1717792247947,-512.15863805,0.00021917,3]
[328794456,1717792247956,-500.0,0.00021917,3]
[328794457,1717792247965,-151.0,0.00021917,2]
[328794458,1717792247974,-995.16,0.00021917,3]
[328794459,1717792247983,-500.0,0.00021917,3]
[328794460,1717792247992,-500.0,0.00021917,3]
[328794461,1717792248001,-543.05,0.00021917,3]
[328794462,1717792248011,-229.639799,0.00021917,2]
[328794463,1717792248020,-590.58,0.00021917,3]
[328794464,1717792248029,-500.0,0.00021917,3]
[328794465,1717792248038,-229.639799,0.00021917,2]
[328794466,1717792248047,-681.21,0.00021917,3]
[328794467,1717792248056,-500.0,0.00021917,3]
[328794468,1717792248065,-788.97,0.00021917,3]
[328794469,1717792248074,-519.92442636,0.00021917,3]
[328794470,1717792248083,-500.0,0.00021917,3]
[328794471,1717792248092,-500.0,0.00021917,3]
[328794472,1717792248101,-500.0,0.00021917,3]
[328794473,1717792248110,-884.95,0.00021917,3]
[328794474,1717792248120,-2610.69,0.00021917,3]
[328794475,1717792248129,-151.0,0.00021917,2]
[328794476,1717792248138,-500.0,0.00021917,3]
[328794477,1717792248147,-725.53,0.00021917,3]
[328794478,1717792248156,-500.0,0.00021917,3]
[328794479,1717792248165,-500.0,0.00021917,3]
[328794480,1717792248174,-500.0,0.00021917,3]
[328794481,1717792248183,-500.0,0.00021917,3]
[328794482,1717792248192,-500.0,0.00021917,3]
[328794483,1717792248202,-500.0,0.00021917,3]
[328794484,1717792248211,-500.0,0.00021917,3]
[328794485,1717792248220,-500.0,0.00021917,3]
[328794486,1717792248229,-1007.71,0.00021917,3]
[328794487,1717792248239,-500.0,0.00021917,3]
[328794488,1717792248247,-500.0,0.00021917,3]
[328794489,1717792248258,-500.0,0.00021917,3]
[328794490,1717792248267,-500.0,0.00021917,3]
[328794491,1717792248276,-500.0,0.00021917,3]
[328794492,1717792248285,-151.0,0.00021917,2]
[328794493,1717792248293,-151.0,0.00021917,2]
[328794494,1717792248303,-151.0,0.00021917,2]
[328794495,1717792248312,-500.0,0.00021917,3]
[328794496,1717792248321,-500.0,0.00021917,3]
[328794497,1717792248330,-500.0,0.00021917,3]
[328794498,1717792248339,-500.0,0.00021917,3]
[328794499,1717792248348,-619.94935528,0.00021917,3]
[328794500,1717792248357,-695.51,0.00021917,3]
[328794501,1717792248366,-500.0,0.00021917,3]
[328794502,1717792248375,-500.0,0.00021917,3]
[328794503,1717792248386,-286.77429263,0.00021917,3]
[328794504,1717792248396,-500.0,0.00021917,3]
[328794505,1717792248406,-2398.74,0.00021917,3]
[328794506,1717792248416,-1394.58,0.00021917,3]
[328794507,1717792248426,-259.97692014,0.00021917,3]
[328794508,1717792248436,-500.0,0.00021917,3]
[328794509,1717792248446,-500.0,0.00021917,3]
[328794510,1717792248457,-500.0,0.00021917,3]
[328794511,1717792248466,-500.0,0.00021917,3]
[328794512,1717792248477,-2383.27,0.00021917,3]
[328794513,1717792248488,-500.0,0.00021917,3]
[328794514,1717792248497,-976.79,0.00021917,3]
[328794515,1717792248508,-500.0,0.00021917,3]
[328794516,1717792248517,-4534.556001,0.00021917,2]
[328794517,1717792248526,-500.0,0.00021917,3]
[328794518,1717792248535,-500.0,0.00021917,3]
[328794519,1717792248544,-500.0,0.00021917,3]
[328794520,1717792248553,-500.0,0.00021917,3]
[328794521,1717792248562,-500.0,0.00021917,3]
[328794522,1717792248570,-753.15,0.00021917,3]
[328794523,1717792248579,-2458.19,0.00021917,3]
[328794524,1717792248588,-1905.61,0.00021917,3]
[328794525,1717792248597,-500.0,0.00021917,3]
[328794526,1717792248606,-1357.5,0.00021917,3]
[328794527,1717792248615,-511.45452275,0.00021917,3]
[328794528,1717792248624,-500.0,0.00021917,3]
[328794529,1717792248634,-500.0,0.00021917,3]
[328794530,1717792248642,-200.09577122,0.00021917,3]
[328794531,1717792248652,-562.360481,0.00021917,2]
[328794532,1717792248661,-562.360481,0.00021917,2]
[328794533,1717792248670,-500.0,0.00021917,3]
[328794534,1717792248680,-151.0,0.00021917,2]
[328794535,1717792248689,-500.0,0.00021917,3]
[328794536,1717792248698,-500.0,0.00021917,3]
[328794537,1717792248707,-151.0,0.00021917,2]
[328794538,1717792248716,-151.0,0.00021917,2]
[328794539,1717792248725,-500.0,0.00021917,3]
[328794540,1717792248735,-906.23,0.00021917,3]
[328794541,1717792248744,-500.0,0.00021917,3]
[328794542,1717792248753,-2853.21,0.00021917,3]
[328794543,1717792248763,-615.88,0.00021917,3]
[328794544,1717792248773,-500.0,0.00021917,3]
[328794545,1717792248787,-3284.59,0.00021917,3]
[328794546,1717792248796,-500.0,0.00021917,3]
[328794547,1717792248806,-677.16,0.00021917,3]
[328794548,1717792248815,-3439.97,0.00021917,3]
[328794549,1717792248826,-534.24,0.00021917,3]
[328794550,1717792248836,-4910.2,0.00021917,3]
[328794551,1717792248845,-500.0,0.00021917,3]
[328794552,1717792248856,-500.0,0.00021917,3]
[328794553,1717792248866,-1444.96,0.00021917,3]
[328794554,1717792248876,-4938.92,0.00021917,3]
[328794555,1717792248886,-671.8,0.00021917,3]
[328794556,1717792248895,-151.0,0.00021917,2]
[328794557,1717792248905,-4473.89,0.00021917,3]
[328794558,1717792248914,-2447.93,0.00021917,3]
[328794559,1717792248924,-546.41,0.00021917,3]
[328794560,1717792248934,-873.37,0.00021917,3]
[328794561,1717792248943,-500.0,0.00021917,3]
[328794562,1717792248953,-500.0,0.00021917,3]
[328794563,1717792248963,-500.0,0.00021917,3]
[328794564,1717792248972,-875.83,0.00021917,3]
[328794565,1717792248982,-500.0,0.00021917,3]
[328794566,1717792248991,-500.0,0.00021917,3]
[328794567,1717792249000,-217.72873552,0.00021917,3]
[328794568,1717792249011,-573.41,0.00021917,3]
[328794569,1717792249020,-500.0,0.00021917,3]
[328794570,1717792249030,-151.0,0.00021917,2]
[328794571,1717792249040,-523.38,0.00021917,3]
[328794572,1717792249050,-1211.66,0.00021917,3]
[328794573,1717792249060,-1365.63,0.00021917,3]
[328794574,1717792249070,-574.62,0.00021917,3]
[328794575,1717792249080,-865.15,0.00021917,3]
[328794576,1717792249091,-500.0,0.00021917,3]
[328794577,1717792249100,-2730.35,0.00021917,3]
[328794578,1717792249110,-500.0,0.00021917,3]
[328794579,1717792249119,-500.0,0.00021917,3]
[328794580,1717792249129,-158.923664,0.00021917,2]
[328794581,1717792249139,-500.0,0.00021917,3]
[328794582,1717792249149,-3742.81,0.00021917,3]
[328794583,1717792249158,-662.93,0.00021917,3]
[328794584,1717792249168,-1015.22,0.00021917,3]
[328794585,1717792249178,-158.923664,0.00021917,2]
[328794586,1717792249187,-579.16,0.00021917,3]
[328794587,1717792249197,-500.0,0.00021917,3]
[328794588,1717792249207,-11474.89,0.00021917,3]
[328794589,1717792249217,-500.0,0.00021917,3]
[328794590,1717792249226,-4725.223322,0.00021917,2]
[328794591,1717792249236,-500.0,0.00021917,3]
[328794592,1717792249245,-1852.39,0.00021917,4]
[328794593,1717792249255,-838.61,0.00021917,3]
[328794594,1717792249264,-500.0,0.00021917,3]
[328794595,1717792249352,-4725.223322,0.00021917,2]
[328794596,1717792249373,-500.0,0.00021917,3]
[328794597,1717792249382,-500.0,0.00021917,3]
[328794598,1717792249391,-500.0,0.00021917,3]
[328794599,1717792249401,-500.0,0.00021917,3]
[328794600,1717792249411,-500.0,0.00021917,2]
[328794601,1717792249420,-500.0,0.00021917,3]
[328794602,1717792249429,-500.0,0.00021917,3]
[328794603,1717792249439,-500.0,0.00021917,3]
[328794604,1717792249449,-2706.116432,0.00021917,2]
[328794605,1717792249458,-2706.116432,0.00021917,2]
[328794606,1717792249468,-2706.116432,0.00021917,2]
[328794607,1717792249478,-2706.116432,0.00021917,2]
[328794608,1717792249488,-2706.116432,0.00021917,2]
[328794609,1717792249499,-500.0,0.00021917,3]
[328794610,1717792249510,-2706.116432,0.00021917,2]
[328794611,1717792249521,-2706.116432,0.00021917,2]
[328794612,1717792249531,-2706.116432,0.00021917,2]
[328794613,1717792249541,-2706.116432,0.00021917,2]
[328794614,1717792249550,-2706.116432,0.00021917,2]
[328794615,1717792249560,-2706.116432,0.00021917,2]
[328794616,1717792249569,-2706.116432,0.00021917,2]
[328794617,1717792249578,-2706.116432,0.00021917,2]
[328794618,1717792249588,-500.0,0.00021917,3]
[328794619,1717792249597,-2706.116432,0.00021917,2]
[328794620,1717792249607,-2706.116432,0.00021917,2]
[328794621,1717792249616,-2706.116432,0.00021917,2]
[328794622,1717792249626,-2706.116432,0.00021917,2]
[328794623,1717792249635,-2706.116432,0.00021917,2]
[328794624,1717792249645,-500.0,0.00021917,3]
[328794625,1717792249655,-500.0,0.00021917,3]
[328794626,1717792249665,-507.62,0.00021917,3]
[328794627,1717792249675,-640.03,0.00021917,3]
[328794628,1717792249684,-500.0,0.00021917,3]
[328794629,1717792249693,-500.0,0.00021917,3]
[328794630,1717792249704,-500.0,0.00021917,3]
[328794631,1717792249714,-1919.13,0.00021917,3]
[328794632,1717792249723,-2474.13,0.00021917,3]
[328794633,1717792249734,-151.0,0.00021917,2]
[328794634,1717792249743,-151.0,0.00021917,2]
[328794635,1717792249752,-151.0,0.00021917,2]
[328794636,1717792249763,-151.0,0.00021917,2]
[328794637,1717792249773,-151.0,0.00021917,2]
[328794638,1717792249785,-151.0,0.00021917,2]
[328794639,1717792249795,-151.0,0.00021917,2]
[328794640,1717792249805,-151.0,0.00021917,2]
[328794641,1717792249815,-500.0,0.00021917,3]
[328794642,1717792249824,-151.0,0.00021917,2]
[328794643,1717792249834,-512.2667002,0.00021917,3]
[328794644,1717792249843,-151.0,0.00021917,2]
[328794645,1717792249853,-227.694162,0.00021917,2]
[328794646,1717792249863,-180.792403,0.00021917,2]
[328794647,1717792249873,-180.792403,0.00021917,2]
[328794648,1717792249883,-180.792403,0.00021917,2]
[328794649,1717792249893,-180.792403,0.00021917,2]
[328794650,1717792249903,-180.792403,0.00021917,2]
[328794651,1717792249914,-180.792403,0.00021917,2]
[328794652,1717792249924,-180.792403,0.00021917,2]
[328794653,1717792249935,-180.792403,0.00021917,2]
[328794654,1717792249945,-180.792403,0.00021917,2]
[328794655,1717792249956,-180.792403,0.00021917,2]
[328794656,1717792249966,-5652.42,0.00021917,3]
[328794657,1717792249975,-180.792403,0.00021917,2]
[328794658,1717792249985,-180.792403,0.00021917,2]
[328794659,1717792249994,-180.792403,0.00021917,2]
[328794660,1717792250005,-180.792403,0.00021917,2]
[328794661,1717792250015,-180.792403,0.00021917,2]
[328794662,1717792250025,-180.792403,0.00021917,2]
[328794663,1717792250036,-180.792403,0.00021917,2]
[328794664,1717792250045,-180.792403,0.00021917,2]
[328794665,1717792250056,-350.605848,0.00021917,2]
[328794666,1717792250067,-350.605848,0.00021917,2]
[328794667,1717792250076,-350.605848,0.00021917,2]
[328794668,1717792250085,-350.605848,0.00021917,2]
[328794669,1717792250094,-350.605848,0.00021917,2]
[328794670,1717792250106,-350.605848,0.00021917,2]
[328794671,1717792250116,-350.605848,0.00021917,2]
[328794672,1717792250126,-350.605848,0.00021917,2]
[328794673,1717792250135,-350.605848,0.00021917,2]
[328794674,1717792250146,-350.605848,0.00021917,2]
[328794675,1717792250156,-350.605848,0.00021917,2]
[328794676,1717792250167,-350.605848,0.00021917,2]
[328794677,1717792250177,-500.0,0.00021917,3]
[328794678,1717792250187,-350.605848,0.00021917,2]
[328794679,1717792250198,-500.0,0.00021917,3]
[328794680,1717792250208,-350.605848,0.00021917,2]
[328794681,1717792250218,-151.0,0.00021917,2]
[328794682,1717792250228,-350.605848,0.00021917,2]
[328794683,1717792250238,-350.605848,0.00021917,2]
[328794684,1717792250248,-521.86650531,0.00021917,3]
[328794685,1717792250259,-350.605848,0.00021917,2]
[328794686,1717792250268,-350.605848,0.00021917,2]
[328794687,1717792250277,-500.0,0.00021917,3]
[328794688,1717792250287,-1054.51,0.00021917,3]
[328794689,1717792250297,-500.0,0.00021917,3]
[328794690,1717792250307,-3161.3,0.00021917,3]
[328794691,1717792250318,-550.16,0.00021917,3]
[328794692,1717792250328,-1295.33,0.00021917,3]
[328794693,1717792250339,-6151.61,0.00021917,3]
[328794694,1717792250351,-2447.61,0.00021917,3]
[328794695,1717792250362,-445.497184,0.00021917,2]
[328794696,1717792250372,-445.497184,0.00021917,2]
[328794697,1717792250382,-445.497184,0.00021917,2]
[328794698,1717792250392,-445.497184,0.00021917,2]
[328794699,1717792250403,-445.497184,0.00021917,2]
[328794700,1717792250413,-445.497184,0.00021917,2]
[328794701,1717792250424,-445.497184,0.00021917,2]
[328794702,1717792250434,-445.497184,0.00021917,2]
[328794703,1717792250444,-445.497184,0.00021917,2]
[328794704,1717792250453,-445.497184,0.00021917,2]
[328794705,1717792250463,-445.497184,0.00021917,2]
[328794706,1717792250472,-10992.89,0.00021917,3]
[328794707,1717792250482,-445.497184,0.00021917,2]
[328794708,1717792250491,-445.497184,0.00021917,2]
[328794709,1717792250500,-445.497184,0.00021917,2]
[328794710,1717792250510,-509.49331624,0.00021917,3]
[328794711,1717792250519,-445.497184,0.00021917,2]
[328794712,1717792250528,-445.497184,0.00021917,2]
[328794713,1717792250538,-445.497184,0.00021917,2]
[328794714,1717792250548,-500.0,0.00021917,3]
[328794715,1717792250560,-445.497184,0.00021917,2]
[328794716,1717792250569,-445.497184,0.00021917,2]
[328794717,1717792250579,-445.49718,0.00021917,2]
[328794718,1717792250587,-589.52750579,0.00021917,3]
[328794719,1717792250597,-24398.51,0.00021917,3]
[328794720,1717792250607,-1760.43,0.00021917,3]
[328794721,1717792250617,-500.0,0.00021917,3]
[328794722,1717792250627,-976.42,0.00021917,3]
[328794723,1717792250636,-500.0,0.00021917,3]
[328794724,1717792250646,-500.0,0.00021917,3]
[328794725,1717792250655,-10259.07,0.00021917,3]
[328794726,1717792250665,-3153.51,0.00021917,3]
[328794727,1717792250675,-662.95,0.00021917,3]
[328794728,1717792250684,-2225.42,0.00021917,3]
[328794729,1717792250694,-500.0,0.00021917,3]
[328794730,1717792250703,-151.0,0.00021917,2]
[328794731,1717792250712,-151.0,0.00021917,2]
[328794732,1717792250721,-151.0,0.00021917,2]
[328794733,1717792250731,-151.0,0.00021917,2]
[328794734,1717792250740,-151.0,0.00021917,2]
[328794735,1717792250749,-151.0,0.00021917,2]
[328794736,1717792250759,-151.0,0.00021917,2]
[328794737,1717792250769,-151.0,0.00021917,2]
[328794738,1717792250783,-151.0,0.00021917,2]
[328794739,1717792250792,-151.0,0.00021917,2]
[328794740,1717792250802,-151.0,0.00021917,2]
[328794741,1717792250813,-151.0,0.00021917,2]
[328794742,1717792250823,-151.0,0.00021917,2]
[328794743,1717792250833,-151.0,0.00021917,2]
[328794744,1717792250843,-182.762637,0.00021917,2]
[328794745,1717792250853,-500.0,0.00021917,3]
[328794746,1717792250863,-2375.96,0.00021917,3]
[328794747,1717792250873,-704.35,0.00021917,3]
[328794748,1717792250883,-2541.68,0.00021917,3]
[328794749,1717792250893,-151.0,0.00021917,2]
[328794750,1717792250903,-151.0,0.00021917,2]
[328794751,1717792250913,-151.0,0.00021917,2]
[328794752,1717792250923,-151.0,0.00021917,2]
[328794753,1717792250933,-151.0,0.00021917,2]
[328794754,1717792250945,-151.0,0.00021917,2]
[328794755,1717792250955,-151.0,0.00021917,2]
[328794756,1717792250964,-265.270841,0.00021917,2]
[328794757,1717792250974,-500.0,0.00021917,3]
[328794758,1717792250983,-616.72,0.00021917,3]
[328794759,1717792250992,-3869.440557,0.00021917,2]
[328794760,1717792251001,-3869.440557,0.00021917,2]
[328794761,1717792251012,-3869.440557,0.00021917,2]
[328794762,1717792251021,-3869.440557,0.00021917,2]
[328794763,1717792251030,-3869.440557,0.00021917,2]
[328794764,1717792251040,-3869.440557,0.00021917,2]
[328794765,1717792251049,-3869.440557,0.00021917,2]
[328794766,1717792251058,-580.65175072,0.00021917,3]
[328794767,1717792251068,-3869.440557,0.00021917,2]
[328794768,1717792251078,-3869.440557,0.00021917,2]
[328794769,1717792251087,-3869.440557,0.00021917,2]
[328794770,1717792251096,-3869.440557,0.00021917,2]
[328794771,1717792251105,-500.0,0.00021917,3]
[328794772,1717792251115,-3869.440557,0.00021917,2]
[328794773,1717792251125,-500.0,0.00021917,3]
[328794774,1717792251134,-3869.440557,0.00021917,2]
[328794775,1717792251226,-1285.55,0.00021917,3]
[328794776,1717792251236,-588.34,0.00021917,2]
[328794777,1717792251247,-3869.440557,0.00021917,2]
[328794778,1717792251257,-3869.440557,0.00021917,2]
[328794779,1717792251267,-3869.440557,0.00021917,2]
[328794780,1717792251276,-3869.440557,0.00021917,2]
[328794781,1717792251285,-3869.440557,0.00021917,2]
[328794782,1717792251294,-3869.440557,0.00021917,2]
[328794783,1717792251304,-3869.440561,0.00021917,2]
[328794784,1717792251313,-480.5464934,0.00021917,3]
[328794785,1717792251323,-955.93,0.00021917,3]
[328794786,1717792251333,-1900.6,0.00021917,3]
[328794787,1717792251342,-500.0,0.00021917,3]
[328794788,1717792251351,-500.0,0.00021917,3]
[328794789,1717792251360,-151.0,0.00021917,2]
[328794790,1717792251370,-151.0,0.00021917,2]
[328794791,1717792251380,-151.0,0.00021917,2]
[328794792,1717792251389,-179.526576,0.00021917,2]
[328794793,1717792251398,-500.0,0.00021917,3]
[328794794,1717792251408,-1032.190908,0.00021917,2]
[328794795,1717792251417,-1032.190908,0.00021917,2]
[328794796,1717792251427,-1032.190908,0.00021917,2]
[328794797,1717792251436,-851.54,0.00021917,3]
[328794798,1717792251446,-744.04,0.00021917,3]
[328794799,1717792251456,-1032.190908,0.00021917,2]
[328794800,1717792251466,-1032.190908,0.00021917,2]
[328794801,1717792251477,-1032.190908,0.00021917,2]
[328794802,1717792251487,-1032.190908,0.00021917,2]
[328794803,1717792251498,-151.0,0.00021917,2]
[328794804,1717792251508,-151.0,0.00021917,2]
[328794805,1717792251519,-1032.190908,0.00021917,2]
[328794806,1717792251529,-151.0,0.00021917,2]
[328794807,1717792251539,-1032.190908,0.00021917,2]
[328794808,1717792251548,-151.0,0.00021917,2]
[328794809,1717792251558,-1032.190908,0.00021917,2]
[328794810,1717792251567,-879.68,0.00021917,3]
[328794811,1717792251577,-156.172827,0.00021917,2]
[328794812,1717792251587,-1032.190908,0.00021917,2]
[328794813,1717792251597,-1032.190908,0.00021917,2]
[328794814,1717792251606,-1032.190908,0.00021917,2]
[328794815,1717792251615,-1056.36,0.00021917,3]
[328794816,1717792251625,-1032.190908,0.00021917,2]
[328794817,1717792251635,-1032.190908,0.00021917,2]
[328794818,1717792251645,-1032.190908,0.00021917,2]
[328794819,1717792251654,-1032.190908,0.00021917,2]
[328794820,1717792251664,-166.666666,0.00021918,2]
[328794821,1717792251673,-31881.11729423,0.00022,2]
[328794822,1717792251683,-3000.0,0.00022,14]
[328794823,1717792251693,-521.0,0.00022,2]
[328794824,1717792251702,-234.540134,0.00022,2]
[328794825,1717792251712,-234.540134,0.00022,2]
[328794826,1717792251721,-659.751375,0.00022,2]
[328794827,1717792251730,-659.751375,0.00022,2]
[328794828,1717792251740,-1167.452912,0.00022,2]
[328794829,1717792251749,-205.237097,0.00022,2]
[328794830,1717792251761,-1167.452912,0.00022,2]
[328794831,1717792251771,-151.0,0.00022,2]
[328794832,1717792251783,-205.237097,0.00022,2]
[328794833,1717792251793,-151.0,0.00022,2]
[328794834,1717792251802,-2706.116432,0.00022,2]
[328794835,1717792251812,-2706.116438,0.00022,2]
[328794836,1717792251823,-151.0,0.00022,2]
[328794837,1717792251832,-180.792403,0.00022,2]
[328794838,1717792251843,-180.792405,0.00022,2]
[328794839,1717792251854,-350.605848,0.00022,2]
[328794840,1717792251865,-350.605858,0.00022,2]
[328794841,1717792251874,-180.0,0.000221,2]
[328794842,1717792251884,-270.0,0.000221,2]
[328794843,1717792251894,-160.0,0.000221,2]
[328794844,1717792251904,-155.0,0.00022189,2]
[328794845,1717792251914,-1280.67003979,0.00022189,2]
[328794846,1717792251923,-1041.57569319,0.00022189,2]
[328794847,1717792251933,-547.29741802,0.00022189,2]
[328794848,1717792251943,-7869.47376404,0.0002219,2]
[328794849,1717792251953,-177.021527,0.0002219,2]
[328794850,1717792251963,-500.0,0.00022191,3]
[328794851,1717792251972,-208.681369,0.00022191,2]
[328794852,1717792251981,-151.0,0.00022191,2]
[328794853,1717792251991,-151.0,0.00022191,2]
[328794854,1717792252000,-151.0,0.00022191,2]
[328794855,1717792252011,-500.0,0.00022191,3]
[328794856,1717792252019,-500.0,0.00022191,3]
[328794857,1717792252029,-1530.71,0.00022191,3]
[328794858,1717792252038,-500.0,0.00022191,3]
[328794859,1717792252047,-500.0,0.00022191,3]
[328794860,1717792252056,-500.0,0.00022191,2]
[328794861,1717792252066,-553.12,0.00022191,3]
[328794862,1717792252075,-200.0,0.00022191,3]
[328794863,1717792252084,-519.0152433,0.00022191,3]
[328794864,1717792252094,-500.0,0.00022191,3]
[328794865,1717792252103,-1089.61,0.00022191,3]
[328794866,1717792252112,-500.0,0.00022191,3]
[328794867,1717792252122,-500.0,0.00022191,3]
[328794868,1717792252131,-500.0,0.00022191,3]
[328794869,1717792252141,-500.0,0.00022191,3]
[328794870,1717792252150,-878.45,0.00022191,3]
[328794871,1717792252159,-500.0,0.00022191,3]
[328794872,1717792252169,-500.0,0.00022191,3]
[328794873,1717792252178,-579.2,0.00022191,3]
[328794874,1717792252188,-500.0,0.00022191,3]
[328794875,1717792252198,-500.0,0.00022191,3]
[328794876,1717792252208,-500.0,0.00022191,3]
[328794877,1717792252218,-500.0,0.00022191,3]
[328794878,1717792252228,-633.75,0.00022191,3]
[328794879,1717792252237,-500.0,0.00022191,3]
[328794880,1717792252247,-692.08,0.00022191,3]
[328794881,1717792252258,-500.0,0.00022191,3]
[328794882,1717792252267,-751.96,0.00022191,3]
[328794883,1717792252276,-500.0,0.00022191,3]
[328794884,1717792252286,-509.88892214,0.00022191,3]
[328794885,1717792252296,-186.60555899,0.00022191,3]
[328794886,1717792252305,-316.39845063,0.00022191,3]
[328794887,1717792252315,-162.4912427,0.00022191,3]
[328794888,1717792252325,-500.0,0.00022191,3]
[328794889,1717792252335,-500.0,0.00022191,3]
[328794890,1717792252344,-388.72641274,0.00022191,3]
[328794891,1717792252353,-500.0,0.00022191,3]
[328794892,1717792252363,-500.0,0.00022191,3]
[328794893,1717792252372,-500.0,0.00022191,3]
[328794894,1717792252382,-500.0,0.00022191,3]
[328794895,1717792252391,-500.0,0.00022191,3]
[328794896,1717792252400,-879.54,0.00022191,3]
[328794897,1717792252410,-500.0,0.00022191,3]
[328794898,1717792252419,-446.35622317,0.00022191,3]
[328794899,1717792252428,-151.0,0.00022191,2]
[328794900,1717792252438,-500.0,0.00022191,3]
[328794901,1717792252447,-151.0,0.00022191,2]
[328794902,1717792252457,-151.0,0.00022191,2]
[328794903,1717792252466,-151.0,0.00022191,2]
[328794904,1717792252475,-256.7463,0.00022191,2]
[328794905,1717792252484,-340.33849493,0.00022191,3]
[328794906,1717792252494,-1213.01,0.00022191,3]
[328794907,1717792252505,-500.0,0.00022191,3]
[328794908,1717792252515,-500.0,0.00022191,3]
[328794909,1717792252525,-500.0,0.00022191,3]
[328794910,1717792252534,-500.0,0.00022191,3]
[328794911,1717792252543,-1159.88,0.00022191,3]
[328794912,1717792252553,-1840.88,0.00022191,3]
[328794913,1717792252562,-500.0,0.00022191,3]
[328794914,1717792252572,-500.0,0.00022191,3]
[328794915,1717792252581,-500.0,0.00022191,3]
[328794916,1717792252590,-535.43,0.00022191,3]
[328794917,1717792252599,-500.0,0.00022191,3]
[328794918,1717792252610,-500.0,0.00022191,3]
[328794919,1717792252620,-1166.5,0.00022191,3]
[328794920,1717792252631,-442.7621031,0.00022191,3]
[328794921,1717792252642,-821.16,0.00022191,3]
[328794922,1717792252652,-500.0,0.00022191,3]
[328794923,1717792252662,-995.16,0.00022191,3]
[328794924,1717792252672,-151.0,0.00022191,2]
[328794925,1717792252683,-151.0,0.00022191,2]
[328794926,1717792252693,-151.0,0.00022191,2]
[328794927,1717792252702,-258.666511,0.00022191,2]
[328794928,1717792252712,-500.0,0.00022191,3]
[328794929,1717792252721,-500.0,0.00022191,3]
[328794930,1717792252731,-543.05,0.00022191,3]
[328794931,1717792252741,-229.639799,0.00022191,2]
[328794932,1717792252750,-229.639799,0.00022191,2]
[328794933,1717792252761,-229.639799,0.00022191,2]
[328794934,1717792252771,-229.639799,0.00022191,2]
[328794935,1717792252782,-590.58,0.00022191,3]
[328794936,1717792252791,-500.0,0.00022191,3]
[328794937,1717792252801,-681.21,0.00022191,3]
[328794938,1717792252811,-229.639799,0.00022191,2]
[328794939,1717792252822,-229.639799,0.00022191,2]
[328794941,1717792252903,-229.639799,0.00022191,2]
[328794942,1717792252921,-229.639799,0.00022191,2]
[328794943,1717792252931,-500.0,0.00022191,3]